Cogmind - Beta 12 @@@ ROGUE MODE // 2024.02.08 @ 05:25:55 Player: dankcaster889 Result: Destroyed by G-34 Mercenary with Small Laser Performance ------------- Evolutions (0) 0 Regions Visited (1) 200 Robots Destroyed (19) 95 Value Destroyed (423) 423 Prototype IDs (2) 40 Alien Tech Used (0) 0 Bonus (0) 0 TOTAL SCORE: 758 Bonus ------- None Cogmind --------- Core Integrity 0/250 Matter 156/300 Energy 100/100 System Corruption 0% Temperature Cool (12) Movement Walking (260) Ox2 Location -10/Materials Parts ------- > --- POWER (1) -------- (None) > --- PROPULSION (2) --- Aluminum Leg Aluminum Leg > --- UTILITY (2) ------ High-capacity Storage Unit Targeting Computer > --- WEAPON (2) ------- Small Laser > --- INVENTORY (20) --- Light Treads Hover Unit Small Storage Unit Terrain Scanner Peak State ------------ > --- POWER ------------ Ion Engine > --- PROPULSION ------- Wheel Wheel > --- UTILITY ---------- Small Storage Unit Light Armor Plating > --- WEAPON ----------- EM Pulse Gun Assault Rifle > --- INVENTORY -------- Light Treads Light Treads Aluminum Leg Aluminum Leg Grenade Launcher [Rating: 7] Favorites ----------- Power Ion Engine Engine Ion Engine Propulsion Light Treads Treads Light Treads Leg Aluminum Leg Wheel Wheel Utility Small Storage Unit Storage Small Storage Unit Processor Targeting Computer Protection Light Armor Plating Weapon Assault Rifle Energy Gun EM Pulse Gun Ballistic Gun Assault Rifle Launcher Grenade Launcher Build | -11 -10 ------- Run | Jun Mat Slots Evolved . | . . Power . | . . Propulsion . | . . Utility . | . . Weapon . | . . Parts Attached 20 | 6 14 Power 3 | 1 2 Engine 3 | 1 2 Core . | . . Reactor . | . . Propulsion 6 | 2 4 Treads 2 | . 2 Leg 2 | . 2 Wheel 2 | 2 . Hover . | . . Flight . | . . Utility 4 | 1 3 Device . | . . Storage 2 | 1 1 Processor 1 | . 1 Hackware . | . . Protection 1 | . 1 Artifact . | . . Weapon 7 | 2 5 Energy Gun 3 | 1 2 Energy Cannon . | . . Ballistic Gun 2 | 1 1 Ballistic Cannon . | . . Launcher 2 | . 2 Special Weapon . | . . Impact Weapon . | . . Slashing Weapon . | . . Piercing Weapon . | . . Special Melee Weapon . | . . Unidentified Prototypes . | . . Parts Lost 10 | . 10 Power 3 | . 3 Propulsion 1 | . 1 Utility 1 | . 1 Weapon 5 | . 5 Highest Loss Streak 5 | . 5 To Critical Strikes . | . . Average Slot Usage (%) 94 | . 94 Engine 12 | . 12 Treads 10 | . 10 Leg 10 | . 10 Wheel 6 | . 6 Storage 14 | . 14 Processor 4 | . 4 Protection 7 | . 7 Energy Gun 8 | . 8 Ballistic Gun 12 | . 12 Launcher 6 | . 6 Naked Turns . | . . Heaviest Build 49 | 14 49 Greatest Support 40 | 20 40 Greatest Overweight (x) 2 | . 2 Average Overweight (x) . | . . Largest Inventory Capacity 20 | 8 20 Average Capacity 11 | 7 12 Most Carried 8 | 5 8 Average Carried 4 | 2 4 Final Capacity 20 | 8 20 Final Carried 4 | 4 4 Class Distribution -------------------- 100% | Mutant Dominant Class ---------------- Mutant | -10/Materials Resources | -11 -10 ----------- Run | Jun Mat Matter Collected 410 | 241 169 Remotely . | . . Salvage Created 455 | . 455 Parts 41 | . 41 Haulers Intercepted 1 | . 1 Recyclers Shooed . | . . Parts Field Recycled . | . . Retrieved Matter . | . . Parts Self-Destructed . | . . Prevented . | . . Kills | -11 -10 ------- Run | Jun Mat Combat Hostiles Destroyed 12 | . 12 Guns 6 | . 6 AOE 6 | . 6 Classes Destroyed 6 | . 6 Worker 1 | . 1 Builder 2 | . 2 Hauler 1 | . 1 Watcher 3 | . 3 Swarmer 3 | . 3 Grunt 9 | . 9 Best Kill Streak 6 | . 6 Combat Bots Only 3 | . 3 Max Kills in Single Turn 2 | . 2 Gunslinging . | . . Exploded 2 | . 2 Melee . | . . Uniques/NPCs Destroyed . | . . Combat | -11 -10 -------- Run | Jun Mat Damage Taken 1251 | . 1251 Core 251 | . 251 Absorbed by Shields . | . . Core Remaining (%) 100 | 100 . Volleys Fired 75 | . 75 Largest 2 | . 2 Hottest 80 | . 80 Shots Fired 97 | . 97 Gun 84 | . 84 Cannon . | . . Launcher 13 | . 13 Special . | . . Kinetic 40 | . 40 Thermal 23 | . 23 Explosive 13 | . 13 Electromagnetic 21 | . 21 Robot Hit Streak 5 | . 5 Robot Miss Streak 7 | . 7 Penetration Max . | . . Secondary Targets . | . . Shots Hit Robots 40 | . 40 Core Hits 41 | . 41 Critical Kills . | . . Critical Parts Destroyed . | . . Critical Strikes . | . . Melee Attacks . | . . Impact . | . . Slashing . | . . Piercing . | . . Sneak Attacks . | . . Combat Hostiles . | . . Follow-up Attacks . | . . Damage Inflicted 1302 | . 1302 Guns 460 | . 460 Cannons . | . . Explosions 821 | . 821 Melee . | . . Ramming 21 | . 21 Kinetic 245 | . 245 Thermal 72 | . 72 Explosive 821 | . 821 Electromagnetic 143 | . 143 Impact . | . . Slashing . | . . Piercing . | . . Highest Corruption . | . . Average Corruption . | . . Corruption Purged . | . . Corruption Blocked . | . . Overload Shots . | . . Overflow Damage 1 | . 1 Projectiles . | . . Explosions 1 | . 1 Melee . | . . Knockbacks . | . . Impact . | . . Kinetic . | . . Secondary . | . . Self-Inflicted Damage 42 | . 42 Shots 3 | . 3 Rammed 4 | . 4 Targets Rammed 8 | . 8 Kicked 4 | . 4 Crushed . | . . Highest Temperature 245 | . 245 Average Temperature 81 | . 81 Received Heat Transfer 528 | . 528 Siege Activations . | . . Robots Corrupted . | . . Combat Hostiles . | . . Parts Fried . | . . Impact Corruptions . | . . Robots Melted . | . . Combat Hostiles . | . . Parts Melted 1 | . 1 Heat Transferred 210 | . 210 Parts Sabotaged . | . . Parts Stolen . | . . Parts Stripped . | . . Power Chain Reactions . | . . Missiles Intercepted . | . . Alert | -11 -10 ------- Run | Jun Mat Peak Influence 215 | . 215 Initial . | . . Average 98 | . 109 Maximum Alert Level 1 | . 1 Low Security (%) 95 | 100 94 Level 1 4 | . 5 Level 2 . | . . Level 3 . | . . Level 4 . | . . Level 5 . | . . High Security . | . . Max Security . | . . Squads Dispatched 3 | . 3 Investigation 2 | . 2 Extermination . | . . Reinforcement 1 | . 1 Assault . | . . Garrison . | . . Intercept . | . . Searches Triggered . | . . Construction Impeded . | . . Haulers Reinforced . | . . Active Scanning Responses . | . . Cargo Convoy Interrupts . | . . Stealth | -11 -10 --------- Run | Jun Mat Distress Signals 3 | . 3 Communications Jammed . | . . Distress Signals . | . . Times Spotted 23 | . 23 Peak Tracking Total 5 | . 5 Tactical Retreats 1 | . 1 Traps | -11 -10 ------- Run | Jun Mat Traps Triggered . | . . Indirectly . | . . Trap Hack Attempts . | . . Triggered . | . . Disarmed . | . . Reprogrammed . | . . Reused . | . . Traps Extracted . | . . Installed . | . . Triggered . | . . Machines | -11 -10 ---------- Run | Jun Mat Machines Disabled . | . . Max in Single Turn . | . . Machines Repaired . | . . Machines Sabotaged . | . . Overloaded Fab Kills . | . . Hacking | -11 -10 --------- Run | Jun Mat Machines Accessed 4 | . 4 Terminals 4 | . 4 Fabricators . | . . Repair Stations . | . . Recycling Units . | . . Scanalyzers . | . . Garrison Access . | . . Total Hacks 15 | . 15 Successful 8 | . 8 Failed 7 | . 7 Catastrophic 1 | . 1 Database Lockouts . | . . Manual . | . . Terminals 15 | . 15 Fabricators . | . . Repair Stations . | . . Recycling Units . | . . Scanalyzers . | . . Garrison Access . | . . Terminal Hacks 8 | . 8 Prototype ID Bank 1 | . 1 Emergency Access Points 1 | . 1 Locate Traps 1 | . 1 Dispatch Records 1 | . 1 Recall Investigation 1 | . 1 Hauler Manifests 1 | . 1 Zone Layout 2 | . 2 Fabricator Hacks . | . . Repair Station Hacks . | . . Recycling Unit Hacks . | . . Scanalyzer . | . . Garrison Access Hacks . | . . Unauthorized Hacks . | . . Terminals . | . . Fabricators . | . . Repair Stations . | . . Recycling Units . | . . Scanalyzers . | . . Garrison Access . | . . Data Cores Recovered . | . . Used . | . . Hacking Detections 4 | . 4 Full Trace Events 3 | . 3 Feedback Events . | . . Feedback Blocked . | . . Robot Schematics Acquired . | . . Robots Built . | . . Authchips . | . . Time . | . . Total Robot Build Rating . | . . Part Schematics Acquired . | . . Parts Built . | . . Authchips . | . . Time . | . . Total Part Build Rating . | . . Parts Repaired . | . . Time . | . . Parts Recycled . | . . Recycled Matter . | . . Retrieved Matter . | . . Retrieved Components . | . . Parts Scanalyzed . | . . Part Schematics Acquired . | . . Parts Damaged . | . . Bothacking | -11 -10 ------------ Run | Jun Mat Used RIF Installer . | . . Robots Hacked . | . . Non-combat . | . . Combat . | . . Robot Hacks Applied . | . . Relay Couplers Released . | . . Fabnet Peak Effective % . | . . Robots Rewired . | . . Allies Hacked . | . . Hacks Repelled . | . . Allies | -11 -10 -------- Run | Jun Mat Total Allies . | . . Largest Group . | . . Highest-Rated Group . | . . Highest-Rated Ally . | . . Total Orders . | . . Ally Attacks . | . . Total Damage . | . . Kills . | . . Allies Corrupted . | . . Allies Melted . | . . Intel | -11 -10 ------- Run | Jun Mat Robot Analysis Total . | . . Derelict Logs Recovered . | . . Drone Launches . | . . Drone Recoveries . | . . Exploration | -11 -10 ------------- Run | Jun Mat Turns Passed 912 | 97 815 Spaces Moved 483 | 101 382 Core 7 | 7 . Treads 145 | . 145 Legs 99 | . 99 Wheels 232 | 94 138 Hover . | . . Flight . | . . Fastest Speed 50 | 50 80 Average Speed 140 | 77 156 Slowest Speed 260 | 80 260 Overloaded Moves . | . . Propulsion Burnouts . | . . Robots Hopped . | . . Cave-ins Triggered . | . . Exploration Rate (%) 16 | 4 29 Regions Visited 1 Branch Regions . Pre-discovered Areas . | . . Known Exits Taken . | . . Unknown Exits Taken 1 | 1 . Scrap Searched . | . . Spaces Dug 16 | . 16 Terrain Destroyed 82 | . 82 Melee . | . . Projectile . | . . AOE 82 | . 82 Terrain Rammed . | . . Walls Destroyed . | . . Machines Disabled . | . . Actions | -11 -10 --------- Run | Jun Mat Total 615 | 120 495 Wait 1 | . 1 Move 482 | 100 382 Hop . | . . Pick Up 24 | 12 12 Fast Attach . | . . Attach 15 | 6 9 Detach . | . . Swap 5 | . 5 Drop 5 | 2 3 Fire 75 | . 75 Melee . | . . Ram 2 | . 2 Kick 4 | . 4 Crush 2 | . 2 Escape Stasis . | . . Rewire . | . . Trap . | . . Miscellaneous . | . . Route ------- -11/Junkyard -10/Materials (discovered 1 exit: [*Mat]) History --------- Turn | Location | Event 20 | -11/Junkyard | Discovered new exit (range 15) 98 | -11/Junkyard | Entered Materials 303 | -10/Materials | Build established: Mutant 373 | -10/Materials | Discovered new exit (range 13) 595 | -10/Materials | Core integrity fell below 50% 629 | -10/Materials | Lost 5 parts (1p1n1u2w) 902 | -10/Materials | Core integrity fell below 20% 913 | -10/Materials | Destroyed by G-34 Mercenary with Small Laser Last Messages --------------- >>Recall(Investigation) Establishing remote squad link... Recalled investigation squad OAUV5Y33DR. >>Layout(Zone) Retrieving Zone 8P layout... Downloaded map data. 00875_ W-16 Scout sends out distress signal. 00883_ W-16 Scout destroyed. 00887_ G-34 Mercenary destroyed. 00895_ Grenade Launcher destroyed. 00897_ K-01 Serf collects debris. 00899_ Lgt. Assault Rifle destroyed. 00902_ Acquired Sml. Laser. 00902_ K-01 Serf collects debris. 00906_ Kicked G-34 Mercenary out of the way. 00907_ Acquired 32 matter. 00908_ Kicked G-34 Mercenary out of the way. 00910_ K-01 Serf collects debris. 00911_ Kicked G-34 Mercenary out of the way. 00911_ Ion Engine destroyed. Map ----- +----------------------------------------------------+ | ?????????????????????????????????????????????????? | | ?????????????????????????????????????????????????? | | ?????????????????????????????????????????????????? | | ?????????????????????????????????????????????????? | | ?????????????????????????????????????????????????? | | ?????????????????????????????????????????????????? | | ?????????????????????????????????????????????????? | | ??????????????????????????? ???????????????????? | | ?? #????# + #""" + #??????????????????? | | ?? #????# # # # #??????????????????? | | ??####### # # # #??????????????????? | | ?? ## ############### #??????????????????? | | ??"" ## # """ #???# ###????????????????? | | ??"" ## # """"" #???# ????????????????? | | ??"" ## # """"" #???# ????????????????? | | ?? ## + """"" #???# ????????????????? | | ?? """## # """ #???# ###????????????????? | | ?? R"## # #???# ###????????????????? | | ?? """## # #???# # ????????????????? | | ?? ## # #???# # "????????????????? | | ??+###### ############### # ????????????????? | | ?? #???## # # ????????????????? | | ?? ###### #???#" """"" + # ????????????????? | | ??##????# #???#T """"" # # ????????????????? | | ??####### #???#" """""% # # #??????? | | ?? ## #???## *@# #############??????? | | ?? """ ### ##????# " =ggg# #???????? | | ?? """ #?# #?????# T k # < #???????? | | ?? """ #?# #?????# "!% # #???????? | | ?? #?# #?????# = ######### ############# | | ?? #?# #?????########### """ # # | | ?? #?# #???????????????# """ !# # """ """ | | ?? #?# #???????????????# """ # # """ """ | | ??######## #???????????????# # # """ """ | | ?? #???????????????# | | ?? #######?????????# | | ??######## !##?????????# ! ##+####### | | ??## # !#??????#### # # #????? | | ??## """ # #??????#^^^ #????? | | ???????? + ????????# % T #????? | | ?????????# ?????????#^ [* ## ## # = #????? | | ?????????# ??????????# # # ##[%##????? | | ?????????# ############ * # # ## ##????? | | ?????????# % ## #### ##????? | | ?????????# % % ## ####% ####### | | ?????????# ##############+###### # # T | | ?????????# #??????????# # # # | | ?????????# #??????????# """ # # # """ | | ?????????# #??????????# """ %+ !!= + +% """ | | ?????????# #??????????# """ # !!= # # """ | +----------------------------------------------------+ Best States ------------- Heat Dissipation 25 Energy Generation 10 Energy Capacity 250 Matter Stores 300 Matter Capacity 300 Sight Range 16 Terrain Scan Density 10 Armor Coverage 150 Evasion (%) 45 Targeting Accuracy 5 Recoil Reduction 2 Item Schematics ----------------- None Robot Schematics ------------------ None Fabricated ------------ Nothing Alien Tech Used ----------------- None Achievements -------------- GoHome() Challenges ------------ None Game ------ Seed SlugRecyclingTreads Manual? 0 Play Time 00:12:07 Cumulative 3.1 hours Start 2024.02.08 @ 05:12:50 End 2024.02.08 @ 05:25:55 Sessions 1 Manual Loads 0 Difficulty Rogue Special Mode None Game No. 18 Rogue 18 Adventurer 0 Explorer 0 Win Type - Total 0 Types 0/0/0/0/0/0/0/0/0 Lore% 2 Gallery% 8 Achievement% 10 Wizard Run 0 Options --------- ASCII 0 Keyboard 0 Movement Arrows Keybinds 0 Fullscreen 1 Font 12/Terminus Map View 83x54 Tactical HUD 1 Map Filters NONE Filters NONE Steam 1 RUN: 205a4438-1149-41d4-90e1-9c7d260b7bc3